[Event "World Senior chT-65 2019"]
[Site "Rhodes"]
[Date "2019.04.16"]
[Round "1.30"]
[White "Reuben, Stewart"]
[Black "Hurme, Harri"]
[Result "1-0"]
[ECO "A28"]
[WhiteElo "1974"]
[BlackElo "2148"]
[Annotator "NA"]
[PlyCount "95"]
[EventDate "2019.04.16"]
[EventType "team-tourn"]
[EventCountry "GRE"]
[SourceTitle "playchess.com"]
[Source "ChessBase"]
[SourceQuality "1"]
[WhiteTeam "England"]
[BlackTeam "Finland"]
[WhiteTeamCountry "ENG"]
[BlackTeamCountry "FIN"]
[TimeControl "40/5400+30:1800+30"]

1. c4 {[%emt 0:00:00]} g6 {[%emt 0:00:00]} 2. Nc3 {[%emt 0:00:00]} Nf6 {[%emt 0:00:00]} 3. e4 {[%emt 0:00:48]} e5 {[%emt 0:00:42]} 4. Nf3 {[%emt 0:01:00]} Nc6 {[%emt 0:00:22]} 5. d4 {[%emt 0:03:28]} exd4 {[%emt 0:08:29]} 6. Nxd4 {[%emt 0:05:45]} d6 {[%emt 0:00:31]} 7. Be2 {[%emt 0:03:49]} Bg7 {[%emt 0:00:20]} 8. Be3 {[%emt 0:01:21]} O-O {[%emt 0:01:13]} 9. Nxc6 {[%emt 0:03:46]} bxc6 {[%emt 0:00:06]} 10. Qd2 {[%emt 0:00:55]} Re8 {[%emt 0:03:10]} 11. f3 {[%emt 0:02:34]} Be6 {[%emt 0:02:58]} 12. Rd1 {[%emt 0:06:47]} Nd7 {[%emt 0:01:52]} 13. O-O {[%emt 0:02:44]} Qb8 {[%emt 0:04:10]} 14. b3 {[%emt 0:02:37]} a5 {[%emt 0:02:22]} 15. f4 {[%emt 0:05:14]} Qb4 {[%emt 0:08:04]} 16. Bd4 {[%emt 0:05:07]} Bxd4+ {[%emt 0:11:05]} 17. Qxd4 {[%emt 0:00:17]} f6 {[%emt 0:00:34]} 18. Bf3 {[%emt 0:02:29]} Rad8 {[%emt 0:04:58]} 19. Na4 {[%emt 0:04:59]} Bf7 {[%emt 0:04:16]} 20. Qa7 {[%emt 0:02:34]} Nb6 {[%emt 0:05:48]} 21. Nxb6 {[%emt 0:08:09]} Qxb6+ {[%emt 0:01:27]} 22. Qxb6 {[%emt 0:00:16]} cxb6 {[%emt 0:00:02]} 23. Rf2 {[%emt 0:03:03]} Kf8 {[%emt 0:02:02]} 24. Rfd2 {[%emt 0:09:53]} Ke7 {[%emt 0:00:43]} 25. Kf2 {[%emt 0:00:34]} h6 {[%emt 0:04:06]} 26. e5 {[%emt 0:11:19]} fxe5 {[%emt 0:03:52]} 27. fxe5 {[%emt 0:00:45]} dxe5 {[%emt 0:00:43]} 28. Bxc6 {[%emt 0:00:22]} Rxd2+ {[%emt 0:03:57]} 29. Rxd2 {[%emt 0:00:11]} Rd8 {[%emt 0:00:18]} 30. Rxd8 {[%emt 0:00:30]} Kxd8 {[%emt 0:00:02]} 31. Ke3 {[%emt 0:00:25]} g5 {[%emt 0:02:48]} 32. Ke4 {[%emt 0:00:47]} Kc7 {[%emt 0:01:43]} 33. Bd5 {[%emt 0:03:14]} Bg6+ {[%emt 0:00:10]} 34. Kxe5 {[%emt 0:00:15]} Bc2 {[%emt 0:02:05]} 35. Be4 {[%emt 0:01:09]} Bd1 {[%emt 0:00:20]} 36. h3 {[%emt 0:04:57]} a4 {[%emt 0:01:03]} 37. bxa4 {[%emt 0:00:34]} Bxa4 {[%emt 0:00:13]} 38. Kd5 {[%emt 0:02:28]} Be8 {[%emt 0:02:39]} 39. Ke6 {[%emt 0:01:02]} g4 {[%emt 0:01:49]} 40. Kf6 {[%emt 0:00:00]} gxh3 {[%emt 0:00:00]} 41. gxh3 {[%emt 0:01:49]} Kd6 {[%emt 0:00:56]} 42. Bg6 {[%emt 0:04:20]} Bd7 {[%emt 0:01:36]} 43. h4 {[%emt 0:03:03]} Kc5 {[%emt 0:00:49]} 44. Bf7 {[%emt 0:01:04]} h5 {[%emt 0:05:22]} 45. Bxh5 {[%emt 0:00:50]} Kxc4 {[%emt 0:00:06]} 46. Bf7+ {[%emt 0:00:15]} Kb4 {[%emt 0:01:36]} 47. h5 {[%emt 0:00:57]} Bb5 {[%emt 0:00:24]} 48. h6 {[%emt 0:00:14]} 1-0

[Event "World Senior chT-65 2019"]
[Site "Rhodes"]
[Date "2019.04.16"]
[Round "1.31"]
[White "Kivimaki, Jaakko"]
[Black "Valentine, Brian J"]
[Result "1-0"]
[ECO "D03"]
[WhiteElo "2165"]
[BlackElo "1954"]
[Annotator "NA"]
[PlyCount "79"]
[EventDate "2019.04.16"]
[EventType "team-tourn"]
[EventCountry "GRE"]
[SourceTitle "playchess.com"]
[Source "ChessBase"]
[SourceQuality "1"]
[WhiteTeam "Finland"]
[BlackTeam "England"]
[WhiteTeamCountry "FIN"]
[BlackTeamCountry "ENG"]
[TimeControl "40/5400+30:1800+30"]

1. Nf3 {[%emt 0:00:00]} Nf6 {[%emt 0:00:00]} 2. d4 {[%emt 0:00:00]} e6 {[%emt 0:00:00]} 3. Bg5 {[%emt 0:00:01]} Be7 {[%emt 0:00:19]} 4. Nbd2 {[%emt 0:00:09]} d5 {[%emt 0:00:22]} 5. e3 {[%emt 0:00:09]} Nbd7 {[%emt 0:01:55]} 6. Bd3 {[%emt 0:00:08]} h6 {[%emt 0:01:02]} 7. Bh4 {[%emt 0:00:07]} O-O {[%emt 0:00:42]} 8. h3 {[%emt 0:00:44]} c5 {[%emt 0:01:13]} 9. c3 {[%emt 0:00:45]} b6 {[%emt 0:12:08]} 10. O-O {[%emt 0:00:23]} Bb7 {[%emt 0:00:08]} 11. Ne5 {[%emt 0:07:09]} Ne4 {[%emt 0:08:17]} 12. Bxe7 {[%emt 0:02:28]} Qxe7 {[%emt 0:00:02]} 13. Nxd7 {[%emt 0:14:54]} Qxd7 {[%emt 0:00:49]} 14. Bxe4 {[%emt 0:00:45]} dxe4 {[%emt 0:00:06]} 15. dxc5 {[%emt 0:01:07]} bxc5 {[%emt 0:03:56]} 16. Nb3 {[%emt 0:05:20]} Qc6 {[%emt 0:00:32]} 17. Na5 {[%emt 0:00:51]} Qb5 {[%emt 0:04:20]} 18. Nxb7 {[%emt 0:00:14]} Qxb7 {[%emt 0:00:02]} 19. Qc2 {[%emt 0:00:30]} Rfd8 {[%emt 0:06:44]} 20. Rfd1 {[%emt 0:03:04]} f5 {[%emt 0:01:35]} 21. Rd2 {[%emt 0:05:42]} Kf7 {[%emt 0:13:28]} 22. Rad1 {[%emt 0:00:44]} Qc7 {[%emt 0:00:30]} 23. c4 {[%emt 0:01:49]} Ke8 {[%emt 0:07:30]} 24. Qa4+ {[%emt 0:04:45]} Ke7 {[%emt 0:00:19]} 25. Qa6 {[%emt 0:07:36]} Qb6 {[%emt 0:05:46]} 26. Qxb6 {[%emt 0:00:15]} axb6 {[%emt 0:00:03]} 27. Rxd8 {[%emt 0:00:14]} Rxd8 {[%emt 0:00:07]} 28. Rxd8 {[%emt 0:00:01]} Kxd8 {[%emt 0:00:04]} 29. Kf1 {[%emt 0:02:14]} g5 {[%emt 0:01:32]} 30. g4 {[%emt 0:13:31]} Ke7 {[%emt 0:26:25]} 31. Ke2 {[%emt 0:00:48]} Kf6 {[%emt 0:01:35]} 32. Kd2 {[%emt 0:04:23]} e5 {[%emt 0:01:24]} 33. Kc2 {[%emt 0:04:55]} f4 {[%emt 0:00:48]} 34. Kb3 {[%emt 0:01:04]} Ke6 {[%emt 0:01:07]} 35. Ka4 {[%emt 0:00:13]} Kd6 {[%emt 0:00:05]} 36. Kb5 {[%emt 0:00:30]} Kc7 {[%emt 0:00:05]} 37. a4 {[%emt 0:00:29]} Kb7 {[%emt 0:00:45]} 38. a5 {[%emt 0:00:38]} bxa5 {[%emt 0:01:28]} 39. Kxc5 {[%emt 0:00:09]} fxe3 {[%emt 0:00:06]} 40. fxe3 {[%emt 0:00:00]} 1-0

[Event "World Senior chT-65 2019"]
[Site "Rhodes"]
[Date "2019.04.16"]
[Round "1.32"]
[White "Thynne, Trefor F"]
[Black "Meskanen, Vesa"]
[Result "1/2-1/2"]
[ECO "D78"]
[WhiteElo "1907"]
[BlackElo "2042"]
[Annotator "NA"]
[PlyCount "77"]
[EventDate "2019.04.16"]
[EventType "team-tourn"]
[EventCountry "GRE"]
[SourceTitle "playchess.com"]
[Source "ChessBase"]
[SourceQuality "1"]
[WhiteTeam "England"]
[BlackTeam "Finland"]
[WhiteTeamCountry "ENG"]
[BlackTeamCountry "FIN"]
[TimeControl "40/5400+30:1800+30"]

1. d4 {[%emt 0:00:00]} Nf6 {[%emt 0:00:00]} 2. Nf3 {[%emt 0:00:00]} g6 {[%emt 0:00:02]} 3. c4 {[%emt 0:00:00]} Bg7 {[%emt 0:00:09]} 4. g3 {[%emt 0:00:00]} c6 {[%emt 0:00:21]} 5. Bg2 {[%emt 0:01:08]} d5 {[%emt 0:03:50]} 6. Nbd2 {[%emt 0:03:38]} O-O {[%emt 0:01:56]} 7. O-O {[%emt 0:02:08]} Bf5 {[%emt 0:04:36]} 8. b3 {[%emt 0:16:00]} Nbd7 {[%emt 0:07:09]} 9. Bb2 {[%emt 0:00:39]} Ne4 {[%emt 0:00:58]} 10. Nxe4 {[%emt 0:11:21]} Bxe4 {[%emt 0:00:44]} 11. Nd2 {[%emt 0:07:56]} Bxg2 {[%emt 0:01:04]} 12. Kxg2 {[%emt 0:00:09]} e6 {[%emt 0:09:14]} 13. e3 {[%emt 0:06:05]} Re8 {[%emt 0:03:29]} 14. f4 {[%emt 0:06:07]} Rc8 {[%emt 0:05:21]} 15. b4 {[%emt 0:11:44]} Nf6 {[%emt 0:07:50]} 16. c5 {[%emt 0:02:06]} Nd7 {[%emt 0:02:58]} 17. Qc2 {[%emt 0:00:55]} f6 {[%emt 0:02:24]} 18. e4 {[%emt 0:04:01]} Rc7 {[%emt 0:06:48]} 19. Rf2 {[%emt 0:03:26]} Nb8 {[%emt 0:02:19]} 20. e5 {[%emt 0:02:35]} Nd7 {[%emt 0:04:45]} 21. Rd1 {[%emt 0:03:01]} Qe7 {[%emt 0:00:58]} 22. Rc1 {[%emt 0:05:59]} Rb8 {[%emt 0:07:22]} 23. Ba3 {[%emt 0:02:55]} Bf8 {[%emt 0:02:00]} 24. h4 {[%emt 0:01:23]} Qg7 {[%emt 0:02:30]} 25. Nf3 {[%emt 0:02:02]} Be7 {[%emt 0:02:42]} 26. Qd2 {[%emt 0:01:03]} b6 {[%emt 0:01:22]} 27. Kh1 {[%emt 0:01:21]} Ra8 {[%emt 0:08:49]} 28. Qe3 {[%emt 0:01:45]} f5 {[%emt 0:02:03]} 29. Rcc2 {[%emt 0:00:55]} b5 {[%emt 0:01:31]} 30. Bc1 {[%emt 0:00:21]} a5 {[%emt 0:00:14]} 31. bxa5 {[%emt 0:01:03]} Rxa5 {[%emt 0:00:13]} 32. Bd2 {[%emt 0:00:29]} Ra4 {[%emt 0:00:14]} 33. Bc3 {[%emt 0:00:29]} Qf8 {[%emt 0:01:24]} 34. Rb2 {[%emt 0:00:32]} Qa8 {[%emt 0:00:23]} 35. Bb4 {[%emt 0:00:43]} Rca7 {[%emt 0:00:47]} 36. Qd2 {[%emt 0:00:43]} Nb8 {[%emt 0:01:56]} 37. Ne1 {[%emt 0:00:41]} Na6 {[%emt 0:01:51]} 38. a3 {[%emt 0:00:17]} Nxb4 39. axb4 {[%emt 0:00:07]} 1/2-1/2

[Event "World Senior chT-65 2019"]
[Site "Rhodes"]
[Date "2019.04.16"]
[Round "1.34"]
[White "Petschar, Kurt"]
[Black "Ranki, Martti"]
[Result "1-0"]
[ECO "C87"]
[WhiteElo "2226"]
[BlackElo "1940"]
[Annotator "NA"]
[PlyCount "53"]
[EventDate "2019.04.16"]
[EventType "team-tourn"]
[EventCountry "GRE"]
[SourceTitle "playchess.com"]
[Source "ChessBase"]
[SourceQuality "1"]
[WhiteTeam "Austria"]
[BlackTeam "Finland"]
[WhiteTeamCountry "AUT"]
[BlackTeamCountry "FIN"]
[TimeControl "40/5400+30:1800+30"]

1. e4 {[%emt 0:00:00]} e5 {[%emt 0:00:00]} 2. Nf3 {[%emt 0:00:00]} Nc6 {[%emt 0:00:00]} 3. Bb5 {[%emt 0:00:00]} a6 {[%emt 0:00:29]} 4. Ba4 {[%emt 0:00:00]} Nf6 {[%emt 0:01:00]} 5. O-O {[%emt 0:00:14]} d6 {[%emt 0:02:14]} 6. Re1 {[%emt 0:03:33]} Bg4 {[%emt 0:02:37]} 7. h3 {[%emt 0:00:17]} Bh5 {[%emt 0:00:31]} 8. c3 {[%emt 0:00:37]} Be7 {[%emt 0:05:24]} 9. d3 {[%emt 0:01:37]} h6 {[%emt 0:04:24]} 10. Nbd2 {[%emt 0:00:43]} O-O {[%emt 0:00:18]} 11. Nf1 {[%emt 0:00:09]} Re8 {[%emt 0:11:25]} 12. Ng3 {[%emt 0:10:33]} Bg6 {[%emt 0:00:01]} 13. Nh4 {[%emt 0:01:58]} Bh7 {[%emt 0:02:44]} 14. Nhf5 {[%emt 0:00:16]} Bf8 {[%emt 0:00:53]} 15. Qf3 {[%emt 0:04:59]} d5 {[%emt 0:14:12]} 16. Be3 {[%emt 0:05:34]} b5 {[%emt 0:11:21]} 17. Bb3 {[%emt 0:01:01]} d4 {[%emt 0:03:53]} 18. cxd4 {[%emt 0:01:44]} exd4 {[%emt 0:07:08]} 19. Bf4 {[%emt 0:33:49]} Na5 {[%emt 0:02:03]} 20. Bc2 {[%emt 0:06:23]} c5 {[%emt 0:01:20]} 21. a4 {[%emt 0:07:35]} c4 {[%emt 0:07:14]} 22. Rad1 {[%emt 0:00:49]} Nc6 {[%emt 0:01:11]} 23. e5 {[%emt 0:03:47]} Nd5 {[%emt 0:01:37]} 24. dxc4 {[%emt 0:00:35]} Nxf4 {[%emt 0:08:09]} 25. Qxf4 {[%emt 0:01:02]} bxc4 {[%emt 0:01:54]} 26. Qe4 {[%emt 0:02:44]} Re6 {[%emt 0:02:52]} 27. Ne7+ {[%emt 0:00:55]} 1-0

[Event "World Senior chT-65 2019"]
[Site "Rhodes"]
[Date "2019.04.16"]
[Round "1.35"]
[White "Alkkiomaki, Jyrki"]
[Black "Singer, Hans"]
[Result "0-1"]
[ECO "A35"]
[WhiteElo "1908"]
[BlackElo "2195"]
[Annotator "NA"]
[PlyCount "96"]
[EventDate "2019.04.16"]
[EventType "team-tourn"]
[EventCountry "GRE"]
[SourceTitle "playchess.com"]
[Source "ChessBase"]
[SourceQuality "1"]
[WhiteTeam "Finland"]
[BlackTeam "Austria"]
[WhiteTeamCountry "FIN"]
[BlackTeamCountry "AUT"]
[TimeControl "40/5400+30:1800+30"]

1. e4 {[%emt 0:00:00]} c6 {[%emt 0:00:00]} 2. d4 {[%emt 0:00:00]} d5 {[%emt 0:00:00]} 3. exd5 {[%emt 0:00:00]} cxd5 {[%emt 0:00:09]} 4. c4 {[%emt 0:00:08]} Nf6 {[%emt 0:00:15]} 5. Nc3 {[%emt 0:00:16]} Nc6 {[%emt 0:00:07]} 6. Nf3 {[%emt 0:00:38]} g6 {[%emt 0:00:14]} 7. cxd5 {[%emt 0:07:33]} Nxd5 {[%emt 0:00:44]} 8. Qb3 {[%emt 0:01:20]} Nxc3 {[%emt 0:01:29]} 9. bxc3 {[%emt 0:00:39]} Bg7 {[%emt 0:00:42]} 10. Bb5 {[%emt 0:05:34]} O-O {[%emt 0:02:05]} 11. Bxc6 {[%emt 0:01:14]} bxc6 {[%emt 0:00:02]} 12. O-O {[%emt 0:00:20]} Qc7 {[%emt 0:11:23]} 13. Ba3 {[%emt 0:03:12]} Be6 {[%emt 0:11:16]} 14. Qb4 {[%emt 0:09:11]} Rfe8 {[%emt 0:02:19]} 15. Rfe1 {[%emt 0:01:11]} Rab8 {[%emt 0:01:28]} 16. Qa4 {[%emt 0:00:28]} Rb5 {[%emt 0:03:22]} 17. Qc2 {[%emt 0:04:12]} Bg4 {[%emt 0:07:25]} 18. Qe4 {[%emt 0:02:31]} Bxf3 {[%emt 0:01:39]} 19. Qxf3 {[%emt 0:00:53]} e6 {[%emt 0:00:31]} 20. Bc5 {[%emt 0:10:31]} Reb8 {[%emt 0:01:19]} 21. Rad1 {[%emt 0:02:13]} h5 {[%emt 0:01:53]} 22. Qd3 {[%emt 0:05:16]} Rd8 {[%emt 0:10:51]} 23. Qc4 {[%emt 0:03:41]} Qb7 {[%emt 0:03:42]} 24. Qa4 {[%emt 0:03:17]} Bf8 {[%emt 0:05:50]} 25. Bxf8 {[%emt 0:02:21]} Kxf8 {[%emt 0:01:05]} 26. Qc4 {[%emt 0:02:04]} Kg7 {[%emt 0:00:51]} 27. Qe2 {[%emt 0:01:47]} Qc7 {[%emt 0:01:22]} 28. Qc2 {[%emt 0:04:37]} Rbd5 {[%emt 0:01:50]} 29. g3 {[%emt 0:04:49]} Qd6 {[%emt 0:03:42]} 30. Rb1 {[%emt 0:00:49]} c5 {[%emt 0:00:52]} 31. Rb7 {[%emt 0:04:15]} cxd4 {[%emt 0:04:31]} 32. cxd4 {[%emt 0:01:00]} a5 {[%emt 0:02:34]} 33. Qc7 {[%emt 0:06:15]} Qxc7 {[%emt 0:00:54]} 34. Rxc7 {[%emt 0:00:08]} R8d7 {[%emt 0:00:59]} 35. Rxd7 {[%emt 0:04:49]} Rxd7 {[%emt 0:00:02]} 36. Re5 {[%emt 0:01:35]} a4 {[%emt 0:00:33]} 37. Kf1 {[%emt 0:01:38]} Rxd4 {[%emt 0:00:25]} 38. Ra5 {[%emt 0:00:09]} Rc4 {[%emt 0:02:03]} 39. a3 {[%emt 0:00:55]} Kf6 {[%emt 0:02:32]} 40. Ke2 {[%emt 0:00:00]} e5 {[%emt 0:00:00]} 41. h3 {[%emt 0:00:40]} h4 {[%emt 0:03:26]} 42. g4 {[%emt 0:00:58]} Rc3 {[%emt 0:04:16]} 43. Rxa4 {[%emt 0:01:05]} Rxh3 {[%emt 0:00:08]} 44. f3 {[%emt 0:00:23]} Rh2+ {[%emt 0:02:14]} 45. Kf1 {[%emt 0:00:08]} Kg5 {[%emt 0:02:45]} 46. Re4 {[%emt 0:01:13]} f6 {[%emt 0:00:00]} 47. a4 {[%emt 0:00:06]} Ra2 {[%emt 0:00:00]} 48. Kg1 {[%emt 0:01:00]} h3 {[%emt 0:00:00]} 0-1

[Event "World Senior chT-65 2019"]
[Site "Rhodes"]
[Date "2019.04.16"]
[Round "1.36"]
[White "Ager, Josef"]
[Black "Kauko, Pekka"]
[Result "1-0"]
[ECO "E01"]
[WhiteElo "2122"]
[BlackElo "1902"]
[Annotator "NA"]
[PlyCount "93"]
[EventDate "2019.04.16"]
[EventType "team-tourn"]
[EventCountry "GRE"]
[SourceTitle "playchess.com"]
[Source "ChessBase"]
[SourceQuality "1"]
[WhiteTeam "Austria"]
[BlackTeam "Finland"]
[WhiteTeamCountry "AUT"]
[BlackTeamCountry "FIN"]
[TimeControl "40/5400+30:1800+30"]

1. Nf3 {[%emt 0:00:00]} d5 {[%emt 0:00:00]} 2. g3 {[%emt 0:00:00]} c5 {[%emt 0:00:30]} 3. Bg2 {[%emt 0:00:00]} Nf6 {[%emt 0:00:45]} 4. O-O {[%emt 0:00:00]} Nc6 {[%emt 0:00:16]} 5. d4 {[%emt 0:00:04]} e6 {[%emt 0:00:43]} 6. c4 {[%emt 0:00:18]} a6 {[%emt 0:01:36]} 7. cxd5 {[%emt 0:01:57]} exd5 {[%emt 0:00:47]} 8. Nc3 {[%emt 0:00:12]} Be7 {[%emt 0:00:33]} 9. dxc5 {[%emt 0:00:47]} Bxc5 {[%emt 0:04:14]} 10. Bg5 {[%emt 0:01:21]} d4 {[%emt 0:01:05]} 11. Na4 {[%emt 0:01:47]} Be7 {[%emt 0:01:32]} 12. Rc1 {[%emt 0:00:30]} O-O {[%emt 0:00:27]} 13. Nc5 {[%emt 0:04:40]} h6 {[%emt 0:03:50]} 14. Bf4 {[%emt 0:01:55]} Qb6 {[%emt 0:10:19]} 15. Nb3 {[%emt 0:05:41]} Rd8 {[%emt 0:02:27]} 16. Ne5 {[%emt 0:03:00]} Bd7 {[%emt 0:06:02]} 17. Nc4 {[%emt 0:02:35]} Qb5 {[%emt 0:14:02]} 18. Nxd4 {[%emt 0:07:26]} Nxd4 {[%emt 0:01:26]} 19. Qxd4 {[%emt 0:00:09]} Be6 {[%emt 0:02:28]} 20. Qc3 {[%emt 0:01:17]} Rac8 {[%emt 0:01:17]} 21. b3 {[%emt 0:00:50]} Nd5 {[%emt 0:02:31]} 22. Bxd5 {[%emt 0:00:28]} Qxd5 {[%emt 0:04:35]} 23. Nb6 {[%emt 0:02:45]} Rxc3 {[%emt 0:03:05]} 24. Nxd5 {[%emt 0:00:12]} Rxc1 {[%emt 0:01:56]} 25. Nxe7+ {[%emt 0:00:11]} Kf8 {[%emt 0:00:28]} 26. Ng6+ {[%emt 0:00:10]} fxg6 {[%emt 0:00:33]} 27. Rxc1 {[%emt 0:00:08]} Rd7 {[%emt 0:00:39]} 28. f3 {[%emt 0:00:34]} Bd5 {[%emt 0:02:26]} 29. h4 {[%emt 0:02:14]} Bc6 {[%emt 0:00:26]} 30. Kf2 {[%emt 0:00:30]} Kf7 {[%emt 0:00:41]} 31. e4 {[%emt 0:02:41]} Ke6 {[%emt 0:01:31]} 32. Ke3 {[%emt 0:01:46]} Rd8 {[%emt 0:01:38]} 33. g4 {[%emt 0:02:50]} Rf8 {[%emt 0:01:37]} 34. Rd1 {[%emt 0:01:29]} Rh8 {[%emt 0:02:46]} 35. Rd6+ {[%emt 0:02:29]} Kf7 {[%emt 0:00:16]} 36. Be5 {[%emt 0:01:24]} Rc8 {[%emt 0:02:04]} 37. f4 {[%emt 0:05:03]} g5 {[%emt 0:01:26]} 38. hxg5 {[%emt 0:02:21]} hxg5 {[%emt 0:00:13]} 39. f5 {[%emt 0:00:13]} Rh8 {[%emt 0:00:34]} 40. Rg6 {[%emt 0:00:00]} Rh1 {[%emt 0:00:00]} 41. Rxg7+ {[%emt 0:00:47]} Kf8 {[%emt 0:01:17]} 42. f6 {[%emt 0:01:02]} Re1+ {[%emt 0:00:24]} 43. Kf2 {[%emt 0:01:02]} Rd1 {[%emt 0:00:49]} 44. Ke3 {[%emt 0:01:03]} Rd7 {[%emt 0:02:16]} 45. Rxg5 {[%emt 0:00:22]} Kf7 {[%emt 0:00:31]} 46. Bd4 {[%emt 0:01:06]} Ke6 {[%emt 0:00:32]} 47. Rh5 {[%emt 0:00:19] Kd5 [%emt 00:00:41]} 1-0

[Event "World Senior chT-65 2019"]
[Site "Rhodes"]
[Date "2019.04.16"]
[Round "1.37"]
[White "Gudmundsson, Kristjan"]
[Black "Morriss, Pete"]
[Result "1/2-1/2"]
[ECO "B10"]
[WhiteElo "2268"]
[BlackElo "1968"]
[Annotator "NA"]
[PlyCount "20"]
[EventDate "2019.04.16"]
[EventType "team-tourn"]
[EventCountry "GRE"]
[SourceTitle "playchess.com"]
[Source "ChessBase"]
[SourceQuality "1"]
[WhiteTeam "Iceland"]
[BlackTeam "Ireland"]
[WhiteTeamCountry "ISL"]
[BlackTeamCountry "IRL"]
[TimeControl "40/5400+30:1800+30"]

1. e4 c6 2. d3 d5 3. Nd2 dxe4 4. dxe4 e5 5. Ngf3 Bg4 6. h3 Bxf3 7. Qxf3 Nf6 8. Bc4 Nbd7 9. O-O Be7 10. Re1 O-O 1/2-1/2

[Event "World Senior chT-65 2019"]
[Site "Rhodes"]
[Date "2019.04.16"]
[Round "1.38"]
[White "Carlile, Orison"]
[Black "Viglundsson, Bjorgvin"]
[Result "0-1"]
[ECO "B20"]
[WhiteElo "2037"]
[BlackElo "2170"]
[Annotator "NA"]
[PlyCount "111"]
[EventDate "2019.04.16"]
[EventType "team-tourn"]
[EventCountry "GRE"]
[SourceTitle "playchess.com"]
[Source "ChessBase"]
[SourceQuality "1"]
[WhiteTeam "Ireland"]
[BlackTeam "Iceland"]
[WhiteTeamCountry "IRL"]
[BlackTeamCountry "ISL"]
[TimeControl "40/5400+30:1800+30"]

1. e4 {[%emt 0:00:01]} c5 {[%emt 0:00:00]} 2. a3 {[%emt 0:00:08]} b6 {[%emt 0:01:58]} 3. b4 {[%emt 0:00:54]} Bb7 {[%emt 0:00:14]} 4. Nc3 {[%emt 0:01:44]} Nc6 {[%emt 0:02:29]} 5. Rb1 {[%emt 0:03:33]} d6 {[%emt 0:02:56]} 6. Nf3 {[%emt 0:06:29]} e6 {[%emt 0:02:55]} 7. bxc5 {[%emt 0:03:07]} dxc5 {[%emt 0:01:01]} 8. Bc4 {[%emt 0:01:40]} Nf6 {[%emt 0:01:27]} 9. d3 {[%emt 0:00:42]} Be7 {[%emt 0:00:33]} 10. O-O {[%emt 0:00:47]} O-O {[%emt 0:00:53]} 11. Bb2 {[%emt 0:06:13]} a6 {[%emt 0:03:31]} 12. a4 {[%emt 0:01:56]} Nd7 {[%emt 0:06:58]} 13. Nd2 {[%emt 0:06:14]} Nd4 {[%emt 0:08:04]} 14. Ne2 {[%emt 0:05:32]} Ne5 {[%emt 0:03:59]} 15. Bxd4 {[%emt 0:06:59]} cxd4 {[%emt 0:00:19]} 16. Bb3 {[%emt 0:02:11]} Bc6 {[%emt 0:04:25]} 17. Ng3 {[%emt 0:01:16]} Kh8 {[%emt 0:07:18]} 18. f4 {[%emt 0:01:17]} Nd7 {[%emt 0:03:13]} 19. f5 {[%emt 0:07:14]} Nc5 {[%emt 0:05:22]} 20. Qg4 {[%emt 0:07:08]} Nxb3 {[%emt 0:04:51]} 21. cxb3 {[%emt 0:00:25]} Bd7 {[%emt 0:08:29]} 22. Nh5 {[%emt 0:11:47]} Rg8 {[%emt 0:01:34]} 23. Nc4 {[%emt 0:08:26]} exf5 {[%emt 0:10:58]} 24. exf5 {[%emt 0:00:10]} f6 {[%emt 0:01:13]} 25. Nf4 {[%emt 0:11:47]} g6 {[%emt 0:00:50]} 26. Qe2 {[%emt 0:01:31]} b5 {[%emt 0:03:14]} 27. Nb6 {[%emt 0:00:37]} Qxb6 {[%emt 0:02:17]} 28. Qxe7 {[%emt 0:00:05]} Bxf5 {[%emt 0:01:10]} 29. Nd5 {[%emt 0:00:35]} Qd8 {[%emt 0:00:24]} 30. Qxf6+ {[%emt 0:00:29]} Qxf6 {[%emt 0:00:49]} 31. Nxf6 {[%emt 0:00:05]} Bxd3 {[%emt 0:02:42]} 32. Nxg8 {[%emt 0:00:08]} Kxg8 {[%emt 0:00:22]} 33. Rbd1 {[%emt 0:00:27]} Bxf1 {[%emt 0:00:08]} 34. Kxf1 {[%emt 0:00:11]} Rd8 {[%emt 0:00:23]} 35. Ke2 {[%emt 0:00:25]} Kf7 {[%emt 0:00:12]} 36. Kd3 {[%emt 0:00:20]} Ke6 {[%emt 0:00:21]} 37. axb5 {[%emt 0:00:17]} axb5 {[%emt 0:00:07]} 38. Re1+ {[%emt 0:00:22]} Kd5 {[%emt 0:00:27]} 39. Re7 {[%emt 0:00:40]} h5 {[%emt 0:00:23]} 40. h4 {[%emt 0:00:00]} Rd6 {[%emt 0:00:00]} 41. Re8 {[%emt 0:12:11]} Kc5 {[%emt 0:05:08]} 42. Re4 {[%emt 0:04:20]} Kb4 {[%emt 0:00:59]} 43. Re5 {[%emt 0:01:55]} Rb6 {[%emt 0:01:18]} 44. Kxd4 {[%emt 0:01:57]} Kxb3 {[%emt 0:00:07]} 45. Kc5 {[%emt 0:01:05]} Rb8 {[%emt 0:00:11]} 46. Re1 {[%emt 0:02:42]} b4 {[%emt 0:00:37]} 47. Re3+ {[%emt 0:05:07]} Ka2 {[%emt 0:02:27]} 48. Re2+ {[%emt 0:00:26]} Ka3 {[%emt 0:00:03]} 49. Re6 {[%emt 0:01:55]} b3 {[%emt 0:01:01]} 50. Ra6+ {[%emt 0:00:49]} Kb2 {[%emt 0:00:06]} 51. Rf6 {[%emt 0:05:22]} Kc2 {[%emt 0:02:19]} 52. Rf2+ {[%emt 0:00:15]} Kd3 {[%emt 0:00:15]} 53. Rb2 {[%emt 0:00:57]} Kc3 {[%emt 0:00:07]} 54. Rf2 {[%emt 0:00:12]} b2 {[%emt 0:00:15]} 55. Rf3+ {[%emt 0:00:03]} Kd2 {[%emt 0:00:13]} 56. Kd4 {[%emt 0:00:25]} 0-1